fUSD/lending_fUSD_20240412
["ID","MTS","AMOUNT","RATE_DAILY","PERIOD"]
[322349957,1712958632936,-152.85,0.000338,2]
[322349958,1712958632945,-151.78703878,0.00033889,7]
[322349959,1712958632954,-706.0,0.00034109,2]
[322349960,1712958632963,-156.01495711,0.00034122,7]
[322349961,1712958632972,-154.02523858,0.00034268,7]
[322349962,1712958632981,-1000.0,0.00034366,2]
[322349963,1712958632990,-413.22,0.00034631,2]
[322349964,1712958632999,-489.0,0.000347,3]
[322349965,1712958633008,-2656.0,0.000347,3]
[322349966,1712958633019,-4125.59518556,0.00034789,2]
[322349967,1712958633031,-760.86938413,0.00034789,2]
[322349968,1712958633043,-2565.5927427,0.00034789,2]
[322349969,1712958633052,-500.0,0.0003489,2]
[322349970,1712958633062,-1050.0,0.00035,3]
[322349971,1712958633072,-151.78703878,0.00035061,7]
[322349972,1712958633081,-157.041306,0.00035248,34]
[322349973,1712958633090,-353.78,0.00035288,15]
[322349974,1712958633101,-830.02081525,0.00035329,7]
[322349975,1712958633110,-150.81351587,0.00035357,7]
[322349976,1712958633119,-151.78703878,0.00035564,7]
[322349977,1712958633129,-150.6,0.00035778,2]
[322349978,1712958633138,-231.912,0.00035778,2]
[322349979,1712958633147,-454.113,0.00035778,2]
[322349980,1712958633156,-215.0,0.00035778,2]
[322349981,1712958633165,-358.741,0.00035778,2]
[322349982,1712958633174,-445.274,0.00035778,2]
[322349983,1712958633183,-7070.999,0.00035778,2]
[322349984,1712958633193,-4836.83,0.00035778,2]
[322349985,1712958633203,-150.376,0.00035778,2]
[322349986,1712958633212,-1053.0,0.00035778,2]
[322349987,1712958633221,-151.78703878,0.00035826,7]
[322349988,1712958633230,-157.041306,0.00036248,35]
[322349989,1712958633240,-150.81351587,0.00036305,7]
[322349990,1712958633249,-151.78703878,0.00036341,7]
[322349991,1712958633258,-150.81351587,0.00036403,7]
[322349992,1712958633267,-157.041306,0.00036648,37]
[322349993,1712958633276,-150.81351587,0.00036741,7]
[322349994,1712958633286,-150.81351587,0.00036834,7]
[322349995,1712958633295,-413.22,0.00036895,2]
[322349996,1712958633304,-413.85505289,0.000369,2]
[322349997,1712958633313,-413.85505289,0.000369,2]
[322349998,1712958633322,-413.85505289,0.000369,2]
[322349999,1712958633331,-413.85505289,0.00036915,2]
[322350000,1712958633340,-1100.0,0.00037,3]
[322350001,1712958633349,-152.86849857,0.00037197,7]
[322350002,1712958633358,-4125.59518556,0.00037233,2]
[322350003,1712958633367,-3326.46212683,0.00037233,2]
[322350004,1712958633376,-157.041306,0.00037248,36]
[322350005,1712958633386,-151.78703878,0.00037452,7]
[322350006,1712958633395,-157.041306,0.00037648,38]
[322350007,1712958633404,-463.89,0.000377,3]
[322350008,1712958633414,-463.89,0.000377,3]
[322350009,1712958633423,-463.89,0.000377,3]
[322350010,1712958633432,-463.89,0.000377,3]
[322350011,1712958633441,-463.89,0.000377,3]
[322350012,1712958633451,-463.89,0.000377,3]
[322350013,1712958633461,-463.89,0.000377,3]
[322350014,1712958633470,-463.89,0.000377,3]
[322350015,1712958633480,-463.89,0.000377,3]
[322350016,1712958633489,-463.89,0.000377,3]
[322350017,1712958633499,-463.89,0.000377,3]
[322350018,1712958633509,-463.89,0.000377,3]
[322350019,1712958633519,-463.89,0.000377,3]
[322350020,1712958633528,-463.89,0.000377,3]
[322350021,1712958633538,-463.89,0.000377,3]
[322350022,1712958633548,-463.89,0.000377,3]
[322350023,1712958633558,-463.89,0.000377,3]
[322350024,1712958633567,-463.89,0.000377,3]
[322350025,1712958633580,-463.89,0.000377,3]
[322350026,1712958633590,-463.89,0.000377,3]
[322350027,1712958633599,-152.85,0.000377,3]
[322350028,1712958633609,-152.85,0.000377,3]
[322350029,1712958633618,-152.85,0.000377,3]
[322350030,1712958633627,-152.85,0.000377,3]
[322350031,1712958633637,-830.02081525,0.00037757,8]
[322350032,1712958633646,-1000.0,0.00037803,2]
[322350033,1712958633656,-413.85505289,0.00037917,2]
[322350034,1712958633665,-163.21773923,0.00038016,7]
[322350035,1712958633675,-353.78,0.00038027,15]
[322350036,1712958633685,-157.041306,0.00038248,37]
[322350037,1712958633695,-165.21718805,0.00038359,7]
[322350038,1712958633704,-300.0,0.0003842,30]
[322350039,1712958633714,-156.01495711,0.0003853,7]
[322350040,1712958633723,-157.041306,0.00038648,39]
[322350041,1712958633735,-153.61418035,0.00038656,7]
[322350042,1712958633744,-300.0,0.0003867,30]
[322350043,1712958633754,-214.0,0.00038778,2]
[322350044,1712958633764,-354.0,0.00038778,2]
[322350045,1712958633773,-442.0,0.00038778,2]
[322350046,1712958633783,-413.85505289,0.00038919,2]
[322350047,1712958633793,-208.06,0.00038933,2]
[322350048,1712958633803,-1150.0,0.00039,3]
[322350049,1712958633812,-151.78703878,0.00039023,7]
[322350050,1712958633823,-413.22,0.00039159,2]
[322350051,1712958633833,-161.041306,0.00039248,38]
[322350052,1712958633842,-150.81351587,0.00039362,7]
[322350053,1712958633852,-530.36,0.00039558,2]
[322350054,1712958633861,-157.041306,0.00039648,40]
[322350055,1712958633872,-165.96780529,0.00039674,7]
[322350056,1712958633882,-4125.59518556,0.00039678,2]
[322350057,1712958633892,-3326.46212683,0.00039678,2]
[322350058,1712958633902,-413.85505289,0.00039922,2]
[322350059,1712958633913,-169.91013981,0.0003996,7]
[322350060,1712958633924,-500.0,0.0004,10]
[322350061,1712958633935,-27119.35776358,0.0004,4]
[322350062,1712958633945,-325.1950212,0.00040086,2]
[322350063,1712958633955,-830.02081525,0.00040186,9]
[322350064,1712958633965,-161.041306,0.00040248,39]
[322350065,1712958633976,-150.81351587,0.0004033,30]
[322350066,1712958633986,-165.21718805,0.00040331,30]
[322350067,1712958633997,-150.81351587,0.0004048,30]
[322350068,1712958634007,-154.02523862,0.00040686,30]
[322350069,1712958634019,-353.78,0.00040767,15]
[322350070,1712958634030,-413.85505289,0.00040924,2]
[322350071,1712958634042,-159.88998137,0.00040945,30]
[322350072,1712958634053,-1200.0,0.00041,3]
[322350073,1712958634063,-151.78703878,0.00041019,30]
[322350074,1712958634075,-157.0,0.00041096,2]
[322350075,1712958634085,-150.81351587,0.00041204,30]
[322350076,1712958634096,-1000.0,0.00041239,2]
[322350077,1712958634106,-157.041306,0.00041248,40]
[322350078,1712958634117,-413.22,0.00041422,2]
[322350079,1712958634128,-167.041306,0.00041648,45]
[322350080,1712958634138,-150.81351587,0.00041676,30]
[322350081,1712958634149,-463.89,0.000417,4]
[322350082,1712958634159,-463.89,0.000417,4]
[322350083,1712958634170,-463.89,0.000417,4]
[322350084,1712958634181,-463.89,0.000417,4]
[322350085,1712958634191,-463.89,0.000417,4]
[322350086,1712958634203,-463.89,0.000417,4]
[322350087,1712958634214,-463.89,0.000417,4]
[322350088,1712958634225,-463.89,0.000417,4]
[322350089,1712958634235,-463.89,0.000417,4]
[322350090,1712958634245,-463.89,0.000417,4]
[322350091,1712958634256,-463.89,0.000417,4]
[322350092,1712958634265,-463.89,0.000417,4]
[322350093,1712958634276,-463.89,0.000417,4]
[322350094,1712958634287,-463.89,0.000417,4]
[322350095,1712958634298,-463.89,0.000417,4]
[322350096,1712958634308,-463.89,0.000417,4]
[322350097,1712958634319,-463.89,0.000417,4]
[322350098,1712958634330,-463.89,0.000417,4]
[322350099,1712958634340,-463.89,0.000417,4]
[322350100,1712958634350,-463.89,0.000417,4]
[322350101,1712958634361,-152.85,0.000417,4]
[322350102,1712958634371,-152.85,0.000417,4]
[322350103,1712958634381,-152.85,0.000417,4]
[322350104,1712958634392,-152.85,0.000417,4]
[322350105,1712958634402,-214.0,0.00041778,2]
[322350106,1712958634412,-442.0,0.00041778,2]
[322350107,1712958634423,-176.77872531,0.00041815,30]
[322350108,1712958634433,-150.81351587,0.00041819,30]
[322350109,1712958634445,-715.05532847,0.00041916,4]
[322350110,1712958634455,-413.85505289,0.00041926,2]
[322350111,1712958634466,-4125.59518556,0.00042122,2]
[322350112,1712958634476,-3326.46212683,0.00042122,2]
[322350113,1712958634486,-157.041306,0.00042248,41]
[322350114,1712958634497,-169.91013981,0.00042345,30]
[322350115,1712958634508,-153.62957258,0.00042471,30]
[322350116,1712958634519,-830.02081525,0.00042614,10]
[322350117,1712958634530,-157.041306,0.00042648,46]
[322350118,1712958634540,-165.21718805,0.00042784,30]
[322350119,1712958634550,-150.81351587,0.00042839,30]
[322350120,1712958634561,-962.68936662,0.0004289,10]
[322350121,1712958634572,-413.85505289,0.00042928,2]
[322350122,1712958634583,-1250.0,0.00043,3]
[322350123,1712958634594,-167.041306,0.00043248,42]
[322350124,1712958634604,-418.16,0.00043282,2]
[322350125,1712958634616,-162.36,0.00043282,2]
[322350126,1712958634627,-418.16,0.00043282,2]
[322350127,1712958634637,-162.36,0.00043282,2]
[322350128,1712958634648,-171.41,0.00043282,2]
[322350129,1712958634658,-418.16,0.00043282,2]
[322350130,1712958634668,-162.36,0.00043282,2]
[322350131,1712958634678,-418.16,0.00043282,2]
[322350132,1712958634689,-162.36,0.00043282,2]
[322350133,1712958634700,-150.0,0.00043282,2]
[322350134,1712958634710,-418.16,0.00043282,2]
[322350135,1712958634721,-150.0,0.00043282,2]
[322350136,1712958634733,-162.36,0.00043282,2]
[322350137,1712958634743,-418.16,0.00043282,2]
[322350138,1712958634754,-150.0,0.00043282,2]
[322350139,1712958634765,-162.36,0.00043282,2]
[322350140,1712958634775,-418.16,0.00043282,2]
[322350141,1712958634786,-162.36,0.00043282,2]
[322350142,1712958634796,-150.0,0.00043282,2]
[322350143,1712958634807,-418.16,0.00043282,2]
[322350144,1712958634817,-150.0,0.00043282,2]
[322350145,1712958634828,-162.36,0.00043282,2]
[322350146,1712958634839,-418.16,0.00043282,2]
[322350147,1712958634849,-150.0,0.00043282,2]
[322350148,1712958634859,-162.36,0.00043282,2]
[322350149,1712958634870,-2223.73711434,0.00043318,2]
[322350150,1712958634881,-2062.52266447,0.00043318,4]
[322350151,1712958634891,-353.78,0.00043507,15]
[322350152,1712958634902,-157.041306,0.00043648,47]
[322350153,1712958634913,-413.22,0.00043686,2]
[322350154,1712958634924,-834.95420185,0.00043788,4]
[322350155,1712958634935,-1330.00033516,0.00043789,4]
[322350156,1712958634945,-325.1950212,0.0004379,2]
[322350157,1712958634956,-512.33,0.00043836,2]
[322350158,1712958634966,-4554.81,0.00043836,2]
[322350159,1712958634977,-413.85505289,0.0004393,2]
[322350160,1712958634987,-150.0,0.00044,44]
[322350161,1712958634998,-151.78703878,0.00044003,30]
[322350162,1712958635009,-150.0,0.00044104,2]
[322350163,1712958635022,-418.16,0.00044104,2]
[322350164,1712958635033,-585.56,0.00044104,2]
[322350165,1712958635044,-150.0,0.00044104,2]
[322350166,1712958635054,-150.0,0.00044104,2]
[322350167,1712958635066,-150.0,0.00044104,2]
[322350168,1712958635077,-150.0,0.00044104,2]
[322350169,1712958635089,-150.0,0.00044104,2]
[322350170,1712958635100,-150.0,0.00044104,2]
[322350171,1712958635112,-150.0,0.00044104,2]
[322350172,1712958635127,-150.0,0.00044104,2]
[322350173,1712958635140,-162.36,0.00044104,2]
[322350174,1712958635153,-162.36,0.00044104,2]
[322350175,1712958635166,-162.36,0.00044104,2]
[322350176,1712958635179,-162.36,0.00044104,2]
[322350177,1712958635191,-162.36,0.00044104,2]
[322350178,1712958635203,-162.36,0.00044104,2]
[322350179,1712958635214,-162.36,0.00044104,2]
[322350180,1712958635225,-162.36,0.00044104,2]
[322350181,1712958635237,-162.36,0.00044104,2]
[322350182,1712958635250,-151.85,0.00044104,2]
[322350183,1712958635263,-153.62957259,0.00044227,30]
[322350184,1712958635275,-626.10744486,0.00044244,4]
[322350185,1712958635288,-167.041306,0.00044248,43]
[322350186,1712958635301,-169.91013981,0.00044268,30]
[322350187,1712958635314,-151.78703878,0.00044274,30]
[322350188,1712958635327,-418.16,0.00044313,2]
[322350189,1712958635339,-1814.74,0.00044313,2]
[322350190,1712958635350,-376.56,0.00044313,2]
[322350191,1712958635363,-4125.59518556,0.00044567,2]
[322350192,1712958635374,-3326.46212683,0.00044567,2]
[322350193,1712958635384,-179.2,0.00044638,10]
[322350194,1712958635395,-157.041306,0.00044648,48]
[322350195,1712958635406,-208.06,0.00044701,2]
[322350196,1712958635418,-151.78703878,0.00044726,30]
[322350197,1712958635430,-152.8684986,0.00044787,30]
[322350198,1712958635441,-413.85505289,0.00044932,2]
[322350199,1712958635452,-170.49660245,0.00045,7]
[322350200,1712958635464,-500.0,0.00045,15]
[322350201,1712958635475,-1300.0,0.00045,3]
[322350202,1712958635486,-830.02081525,0.00045043,12]
[322350203,1712958635497,-151.78703878,0.00045056,30]
[322350204,1712958635510,-157.041306,0.00045248,44]
[322350205,1712958635521,-450.6016,0.00045423,2]
[322350206,1712958635533,-1000.0,0.00045498,2]
[322350207,1712958635544,-150.0,0.000455,8]
[322350208,1712958635555,-35184.59509462,0.00045598,4]
[322350209,1712958635565,-463.89,0.000456,5]
[322350210,1712958635578,-463.89,0.000456,5]
[322350211,1712958635591,-463.89,0.000456,5]
[322350212,1712958635603,-463.89,0.000456,5]
[322350213,1712958635614,-463.89,0.000456,5]
[322350214,1712958635626,-463.89,0.000456,5]
[322350215,1712958635638,-463.89,0.000456,5]
[322350216,1712958635649,-463.89,0.000456,5]
[322350217,1712958635660,-463.89,0.000456,5]
[322350218,1712958635671,-463.89,0.000456,5]
[322350219,1712958635682,-463.89,0.000456,5]
[322350220,1712958635693,-463.89,0.000456,5]
[322350221,1712958635705,-463.89,0.000456,5]
[322350222,1712958635717,-463.89,0.000456,5]
[322350223,1712958635729,-463.89,0.000456,5]
[322350224,1712958635740,-463.89,0.000456,5]
[322350225,1712958635753,-463.89,0.000456,5]
[322350226,1712958635764,-463.89,0.000456,5]
[322350227,1712958635778,-463.89,0.000456,5]
[322350228,1712958635791,-463.89,0.000456,5]
[322350229,1712958635803,-152.85,0.000456,5]
[322350230,1712958635815,-152.85,0.000456,5]
[322350231,1712958635829,-152.85,0.000456,5]
[322350232,1712958635841,-152.85,0.000456,5]
[322350233,1712958635853,-167.041306,0.00045648,49]
[322350234,1712958635865,-520.86,0.00045778,2]
[322350235,1712958635876,-154.38,0.00045778,2]
[322350236,1712958635886,-153.83,0.00045778,2]
[322350237,1712958635896,-150.0,0.00045778,2]
[322350238,1712958635907,-520.86,0.00045778,2]
[322350239,1712958635917,-150.0,0.00045778,2]
[322350240,1712958635929,-150.0,0.00045778,2]
[322350241,1712958635941,-150.0,0.00045778,2]
[322350242,1712958635953,-150.0,0.00045778,2]
[322350243,1712958635964,-2603.52703539,0.00045814,4]
[322350244,1712958635975,-4072.29619757,0.00045814,15]
[322350245,1712958635987,-192.36220435,0.00045815,4]
[322350246,1712958635999,-392.63,0.00045816,2]
[322350247,1712958636011,-392.63,0.00045828,2]
[322350248,1712958636023,-392.63,0.0004584,2]
[322350249,1712958636036,-392.63,0.00045852,2]
[322350250,1712958636046,-392.63,0.00045864,2]
[322350251,1712958636056,-392.63,0.00045876,2]
[322350252,1712958636066,-392.63,0.00045888,2]
[322350253,1712958636076,-392.63,0.000459,2]
[322350254,1712958636087,-562.74532621,0.0004591,4]
[322350255,1712958636097,-392.63,0.00045912,2]
[322350256,1712958636108,-392.63,0.00045924,2]
[322350257,1712958636120,-200.0,0.00045931,25]
[322350258,1712958636131,-413.85505289,0.00045935,2]
[322350259,1712958636141,-392.63,0.00045936,2]
[322350260,1712958636152,-151.78703878,0.0004594,30]
[322350261,1712958636162,-392.63,0.00045948,2]
[322350262,1712958636174,-413.22,0.0004595,2]
[322350263,1712958636185,-392.63,0.0004596,2]
[322350264,1712958636196,-392.63,0.00045972,2]
[322350265,1712958636206,-392.63,0.00045985,2]
[322350266,1712958636217,-392.63,0.00045997,2]
[322350267,1712958636228,-500.0,0.00046,15]
[322350268,1712958636239,-4000.0,0.00046,3]
[322350269,1712958636249,-474.6126471,0.00046,120]
[322350270,1712958636259,-150.0,0.00046,8]
[322350271,1712958636271,-392.63,0.00046009,2]
[322350272,1712958636284,-392.63,0.00046021,2]
[322350273,1712958636295,-392.63,0.00046033,2]
[322350274,1712958636306,-392.63,0.00046045,2]
[322350275,1712958636317,-353.78,0.00046247,15]
[322350276,1712958636328,-157.041306,0.00046248,45]
[322350277,1712958636338,-7500.0,0.00046279,2]
[322350278,1712958636349,-157.79011716,0.00046301,60]
[322350279,1712958636360,-255.80174823,0.00046379,4]
[322350280,1712958636371,-151.78703878,0.00046404,30]
[322350281,1712958636381,-151.15,0.00046465,2]
[322350282,1712958636391,-151.15,0.00046465,2]
[322350283,1712958636402,-155.26178669,0.00046465,2]
[322350284,1712958636412,-1869.33159734,0.00046472,2]
[322350285,1712958636422,-2044.78147375,0.00046473,22]
[322350286,1712958636433,-219.37866606,0.00046473,22]
[322350287,1712958636444,-152.86380634,0.00046473,31]
[322350288,1712958636454,-207.39095855,0.00046475,22]
[322350289,1712958636465,-174.66297084,0.00046475,22]
[322350290,1712958636476,-173.72120905,0.00046475,24]
[322350291,1712958636486,-245000.0,0.00046475,2]
[322350292,1712958636497,-150.0,0.000465,8]
[322350293,1712958636508,-151.15,0.00046563,2]
[322350294,1712958636518,-155.0,0.00046573,4]
[322350295,1712958636529,-2349.93858112,0.00046573,4]
[322350296,1712958636539,-238.80007358,0.00046573,4]
[322350297,1712958636550,-3386.46369865,0.00046573,4]
[322350298,1712958636562,-18715.79805901,0.00046573,4]
[322350299,1712958636572,-155.18531998,0.00046573,4]
[322350300,1712958636583,-263.14036967,0.00046573,4]
[322350301,1712958636594,-5581.46567885,0.00046573,4]
[322350302,1712958636604,-783.81607988,0.00046573,4]
[322350303,1712958636615,-155.32400361,0.00046573,4]
[322350304,1712958636626,-198.46901625,0.00046573,4]
[322350305,1712958636637,-561.76868784,0.00046573,4]
[322350306,1712958636647,-53980.00036667,0.00046573,4]
[322350307,1712958636947,-661.87135703,0.00046573,4]
[322350308,1712958636960,-2184.95758574,0.00046573,4]
[322350309,1712958636973,-176773.29014926,0.00046573,4]
[322350310,1712958636984,-1241.4257509,0.00046573,4]
[322350311,1712958636994,-166.84811033,0.00046573,4]
[322350312,1712958637005,-451.60919826,0.00046573,4]
[322350313,1712958637015,-6746.82289371,0.00046574,4]
[322350314,1712958637030,-585.11074936,0.00046574,4]
[322350315,1712958637041,-500.0,0.00046575,31]
[322350316,1712958637051,-264.24684634,0.00046575,31]
[322350317,1712958637063,-500.0,0.00046575,31]
[322350318,1712958637074,-500.0,0.00046575,31]
[322350319,1712958637085,-500.0,0.00046575,31]
[322350320,1712958637095,-500.0,0.00046575,31]
[322350321,1712958637106,-500.0,0.00046575,31]
[322350322,1712958637116,-500.0,0.00046575,31]
[322350323,1712958637126,-175.0,0.00046575,31]
[322350324,1712958637136,-598.1560938,0.00046575,31]
[322350325,1712958637147,-500.0,0.00046575,31]
[322350326,1712958637157,-500.0,0.00046575,31]
[322350327,1712958637167,-387.95612828,0.00046575,31]
[322350328,1712958637178,-523.44208844,0.00046575,31]
[322350329,1712958637188,-500.0,0.00046575,31]
[322350330,1712958637200,-500.0,0.00046575,31]
[322350331,1712958637210,-500.0,0.00046575,31]
[322350332,1712958637221,-500.0,0.00046575,31]
[322350334,1712958637231,-374.46137945,0.00046575,31]
[322350335,1712958637241,-495.57130229,0.00046575,31]
[322350336,1712958637251,-500.0,0.00046575,31]
[322350337,1712958637261,-300.56774659,0.00046575,31]
[322350338,1712958637272,-500.0,0.00046575,31]
[322350339,1712958637282,-500.0,0.00046575,31]
[322350341,1712958637302,-640.05234337,0.00046575,31]
[322350343,1712958637324,-500.0,0.00046575,31]
[322350345,1712958637348,-500.0,0.00046575,31]
[322350346,1712958637371,-506.29173567,0.00046575,31]
[322350347,1712958637394,-500.0,0.00046575,31]
[322350348,1712958637417,-423.8695618,0.00046575,31]
[322350349,1712958637440,-500.0,0.00046575,31]
[322350350,1712958637463,-500.0,0.00046575,31]
[322350351,1712958637486,-500.0,0.00046575,31]
[322350352,1712958637496,-503.67010404,0.00046575,31]
[322350353,1712958637506,-500.0,0.00046575,31]
[322350354,1712958637516,-500.0,0.00046575,31]
[322350355,1712958637526,-500.0,0.00046575,31]
[322350356,1712958637536,-500.0,0.00046575,31]
[322350357,1712958637546,-510.75990535,0.00046575,31]
[322350358,1712958637556,-500.0,0.00046575,31]
[322350359,1712958637565,-500.0,0.00046575,31]
[322350360,1712958637575,-415.94903858,0.00046575,31]
[322350361,1712958637586,-564.06742354,0.00046575,31]
[322350362,1712958637596,-500.0,0.00046575,31]
[322350363,1712958637606,-293.97946106,0.00046575,31]
[322350364,1712958637616,-500.0,0.00046575,31]
[322350365,1712958637625,-500.0,0.00046575,31]
[322350366,1712958637636,-500.0,0.00046575,31]
[322350367,1712958637645,-510.68933564,0.00046575,31]
[322350368,1712958637655,-500.0,0.00046575,31]
[322350369,1712958637665,-500.0,0.00046575,31]
[322350370,1712958637675,-500.0,0.00046575,31]
[322350371,1712958637685,-500.0,0.00046575,31]
[322350372,1712958637694,-486.61551226,0.00046575,31]
[322350373,1712958637704,-500.0,0.00046575,30]
[322350374,1712958637714,-500.0,0.00046575,31]
[322350375,1712958637724,-500.0,0.00046575,31]
[322350376,1712958637734,-500.0,0.00046575,31]
[322350377,1712958637744,-500.0,0.00046575,31]
[322350378,1712958637754,-500.0,0.00046575,31]
[322350379,1712958637763,-500.0,0.00046575,31]
[322350380,1712958637773,-500.0,0.00046575,31]
[322350381,1712958637782,-500.0,0.00046575,31]
[322350382,1712958637792,-509.79138112,0.00046575,31]
[322350383,1712958637802,-506.53194815,0.00046575,31]
[322350384,1712958637813,-503.71916488,0.00046575,31]
[322350385,1712958637823,-500.0,0.00046575,31]
[322350386,1712958637833,-500.0,0.00046575,31]
[322350387,1712958637843,-500.0,0.00046575,31]
[322350388,1712958637853,-259.26772885,0.00046575,31]
[322350389,1712958637863,-500.0,0.00046575,31]
[322350400,1712958638169,-500.0,0.00046575,31]
[322350401,1712958638204,-159.34236319,0.00046575,31]
[322350402,1712958638220,-516.75565893,0.00046575,31]
[322350403,1712958638235,-546.74204505,0.00046575,31]
[322350404,1712958638245,-505.11452577,0.00046575,31]
[322350405,1712958638254,-523.33435929,0.00046575,31]
[322350406,1712958638263,-500.0,0.00046575,31]
[322350407,1712958638272,-500.0,0.00046575,31]
[322350408,1712958638281,-316.70300374,0.00046575,31]
[322350409,1712958638290,-500.0,0.00046575,31]
[322350410,1712958638299,-500.0,0.00046575,31]
[322350411,1712958638308,-500.0,0.00046575,31]
[322350412,1712958638317,-462.58233309,0.00046575,31]
[322350413,1712958638326,-500.0,0.00046575,31]
[322350414,1712958638336,-500.0,0.00046575,31]
[322350415,1712958638345,-156.98040729,0.00046575,31]
[322350416,1712958638354,-500.0,0.00046575,31]
[322350417,1712958638363,-500.0,0.00046575,31]
[322350418,1712958638372,-500.0,0.00046575,31]
[322350419,1712958638382,-500.0,0.00046575,31]
[322350420,1712958638392,-500.0,0.00046575,31]
[322350421,1712958638402,-500.0,0.00046575,2]
[322350422,1712958638411,-532.08493771,0.00046575,31]
[322350423,1712958638420,-500.0,0.00046575,31]
[322350424,1712958638431,-500.0,0.00046575,31]
[322350425,1712958638442,-500.0,0.00046575,31]
[322350426,1712958638451,-500.0,0.00046575,31]
[322350427,1712958638461,-500.0,0.00046575,31]
[322350428,1712958638470,-517.88085068,0.00046575,31]
[322350429,1712958638480,-516.32411022,0.00046575,31]
[322350430,1712958638489,-500.0,0.00046575,31]
[322350431,1712958638498,-500.0,0.00046575,31]
[322350432,1712958638507,-500.0,0.00046575,31]
[322350433,1712958638516,-500.0,0.00046575,31]
[322350434,1712958638525,-500.0,0.00046575,31]
[322350435,1712958638535,-500.0,0.00046575,31]
[322350436,1712958638544,-500.0,0.00046575,31]
[322350437,1712958638554,-500.0,0.00046575,31]
[322350438,1712958638563,-501.13317859,0.00046575,31]
[322350439,1712958638572,-511.36272374,0.00046575,31]
[322350440,1712958638582,-500.0,0.00046575,31]
[322350441,1712958638591,-500.0,0.00046575,31]
[322350442,1712958638600,-500.0,0.00046575,31]
[322350443,1712958638609,-500.0,0.00046575,31]
[322350444,1712958638618,-500.0,0.00046575,31]
[322350445,1712958638627,-500.0,0.00046575,31]
[322350446,1712958638636,-500.0,0.00046575,31]
[322350447,1712958638645,-508.80143083,0.00046575,31]
[322350448,1712958638654,-500.0,0.00046575,31]
[322350449,1712958638663,-500.0,0.00046575,31]
[322350450,1712958638673,-500.0,0.00046575,31]
[322350451,1712958638682,-500.0,0.00046575,31]
[322350452,1712958638691,-500.0,0.00046575,31]
[322350453,1712958638700,-500.0,0.00046575,31]
[322350454,1712958638709,-500.0,0.00046575,31]
[322350455,1712958638718,-500.0,0.00046575,31]
[322350456,1712958638728,-500.0,0.00046575,31]
[322350457,1712958638737,-500.0,0.00046575,31]
[322350458,1712958638746,-500.0,0.00046575,31]
[322350459,1712958638755,-500.0,0.00046575,31]
[322350460,1712958638764,-500.0,0.00046575,31]
[322350461,1712958638773,-500.0,0.00046575,31]
[322350462,1712958638783,-500.0,0.00046575,31]
[322350463,1712958638792,-500.0,0.00046575,31]
[322350464,1712958638802,-500.0,0.00046575,31]
[322350465,1712958638811,-663.41,0.00046575,31]
[322350466,1712958638821,-500.0,0.00046575,31]
[322350467,1712958638830,-500.0,0.00046575,31]
[322350468,1712958638840,-525.08209839,0.00046575,31]
[322350469,1712958638849,-500.0,0.00046575,31]
[322350470,1712958638858,-500.0,0.00046575,31]